fUST/lending_fUST_20260206
["ID","MTS","AMOUNT","RATE_DAILY","PERIOD"]
[404622152,1770339047814,-1962.91011651,0.00025,2]
[404622153,1770339047823,-1962.91011651,0.00025,2]
[404622154,1770339047833,-28398.4,0.00025,2]
[404622155,1770339047842,-151.0,0.000251,16]
[404622156,1770339047851,-275.15954683,0.00025125,2]
[404622157,1770339047861,-582.51528868,0.000252,5]
[404622158,1770339047870,-151.0,0.000252,20]
[404622159,1770339047879,-250.0,0.00025205,2]
[404622160,1770339047889,-163.03212451,0.00025212,2]
[404622161,1770339047899,-652.12849804,0.00025212,2]
[404622162,1770339047908,-1467.28912059,0.00025212,2]
[404622163,1770339047919,-1667.94745136,0.00025212,2]
[404622164,1770339047936,-292.04777451,0.00025212,2]
[404622165,1770339047945,-1775.19910797,0.00025212,2]
[404622166,1770339047955,-2770.97485759,0.00025212,2]
[404622167,1770339047965,-160.0,0.00025234,4]
[404622168,1770339047975,-151.0,0.000253,10]
[404622169,1770339047984,-329.985568,0.00025342,2]
[404622170,1770339047994,-900.0,0.00025469,3]
[404622171,1770339048004,-151.0,0.000255,20]
[404622172,1770339048013,-160.0,0.00025581,5]
[404622173,1770339048024,-151.0,0.000256,17]
[404622174,1770339048033,-151.0,0.000256,19]
[404622175,1770339048043,-350.0,0.00025753,2]
[404622176,1770339048052,-151.0,0.000258,12]
[404622177,1770339048061,-204.5,0.00025802,2]
[404622178,1770339048071,-2860.24,0.000259,2]
[404622179,1770339048080,-151.0,0.000259,12]
[404622180,1770339048090,-160.0,0.00025927,6]
[404622181,1770339048099,-325.55832759,0.00025953,2]
[404622182,1770339048109,-31410.6305373,0.0002598,2]
[404622183,1770339048118,-151.0,0.0002599,7]
[404622184,1770339048128,-100000.0,0.0002599,2]
[404622185,1770339048138,-31410.6305373,0.0002599,2]
[404622186,1770339048147,-531.24079953,0.00026,2]
[404622187,1770339048156,-34135.95010125,0.00026,30]
[404622188,1770339048316,-286.43,0.00026,30]
[404622189,1770339048672,-513.17087944,0.00023616,2]
[404622190,1770339048690,-4486.82912056,0.00023616,2]
[404622191,1770339048699,-408.32089484,0.000245,2]
[404622192,1770339048709,-250.0,0.0002486,2]
[404622193,1770339048718,-250.0,0.0002486,2]
[404622194,1770339048727,-250.0,0.0002486,2]
[404622195,1770339048736,-250.0,0.0002486,2]
[404622196,1770339048745,-250.0,0.0002486,2]
[404622197,1770339048754,-250.0,0.0002486,2]
[404622198,1770339048764,-250.0,0.0002486,2]
[404622199,1770339048774,-1525.62514899,0.00024884,2]
[404622200,1770339048783,-4354.3709796,0.00026,30]
[404622201,1770339048843,-250.0,0.0002486,2]
[404622202,1770339048852,-408.32089484,0.000249,2]
[404622203,1770339048862,-2719.99355381,0.00026,30]
[404622204,1770339048891,-1854.79158332,0.00026,30]
[404622205,1770339049034,-6429.14415559,0.00026,30]
[404622206,1770339049043,-2568.33157619,0.00026,2]
[404622245,1770339684254,393.0,0.00030137,120]
[404622249,1770339693941,17132.72667338,0.00030137,120]
[404622315,1770340069213,400.0,0.0003,120]
[404622317,1770340109168,1000.0,0.0003,120]
[404622324,1770340210118,389.3901587,0.00013273,2]
[404622326,1770340228883,256.0,0.0003,120]
[404622327,1770340229144,393.0,0.00030136,120]
[404622378,1770340232253,-1357.04138689,0.00016313,2]
[404622463,1770340240488,-440.84013992,0.00016313,2]
[404622464,1770340240499,-461.21936421,0.00016313,2]
[404622465,1770340240511,-113.299109,0.00016313,2]
[404622467,1770340240521,-5000.0,0.00016478,2]
[404622469,1770340240530,-187.9987139,0.00016728,2]
[404622471,1770340240540,-198.7065492,0.00017678,2]
[404622520,1770340246597,-301.2934508,0.00017678,2]
[404622521,1770340246607,-740.37321587,0.00017679,2]
[404622534,1770340258102,500.0,0.0003,120]
[404622536,1770340266401,200.0,0.00013699,2]
[404622537,1770340271228,500.0,0.00013273,2]
[404622538,1770340271276,638.83428062,0.00013821,2]
[404622578,1770340401473,500.0,0.00013699,2]
[404622579,1770340401688,500.0,0.00013699,2]
[404622580,1770340401715,506.56547141,0.00014247,2]
[404622581,1770340443834,500.0,0.00013273,2]
[404622582,1770340443868,301.01189933,0.00014368,2]
[404622583,1770340443931,1000.0,0.00013821,2]
[404622584,1770340448386,500.0,0.00013273,2]
[404622585,1770340448416,500.50079033,0.00013273,2]
[404622586,1770340448450,1000.0,0.00013821,2]
[404622587,1770340448489,407.82856512,0.00014368,2]
[404622588,1770340448621,502.28732278,0.00013273,2]
[404622589,1770340448659,500.98262723,0.00013273,2]
[404622590,1770340448692,500.40621732,0.00013273,2]
[404622591,1770340448876,302.80573112,0.00013673,2]
[404622592,1770340449724,500.0,0.00013273,2]
[404622593,1770340449776,1000.0,0.00013821,2]
[404622594,1770340449850,1500.0,0.00014368,2]
[404622595,1770340449890,1119.02743993,0.00014916,2]
[404622596,1770340450667,502.44560844,0.00013273,2]
[404622597,1770340452558,500.0,0.00013699,2]
[404622598,1770340452589,326.96670025,0.00013273,2]
[404622599,1770340453812,502.26914519,0.00013699,2]
[404622600,1770340455953,1116.0,0.0001505,2]
[404622601,1770340482087,9500.0,0.00030137,120]
[404622605,1770340506839,500.0,0.00013273,2]
[404622606,1770340506895,1079.86275782,0.00013821,2]
[404622607,1770340507000,500.0,0.00013273,2]
[404622608,1770340507058,500.0,0.00013821,2]
[404622609,1770340509826,501.63013071,0.00013699,2]
[404622610,1770340509877,501.17154116,0.00013699,2]
[404622611,1770340510618,500.0,0.00013699,2]
[404622612,1770340510646,500.0,0.00013699,2]
[404622613,1770340510677,511.4313208,0.00014247,2]
[404622614,1770340510782,500.0,0.00013699,2]
[404622615,1770340510862,485.91457631,0.00013699,2]
[404622616,1770340514688,500.0,0.00013699,2]
[404622617,1770340517256,500.0,0.00013699,2]
[404622618,1770340517780,500.0,0.00013699,2]
[404622619,1770340517819,500.20077682,0.00013699,2]
[404622620,1770340517899,500.0,0.00013273,2]
[404622621,1770340517960,924.74318778,0.00013821,2]
[404622622,1770340518169,500.0,0.00013699,2]
[404622623,1770340519614,500.0,0.00013699,2]
[404622624,1770340519673,273.50012722,0.00014247,2]
[404622625,1770340519824,500.0,0.00013699,2]
[404622626,1770340520404,500.0,0.00013273,2]
[404622627,1770340520460,581.59493724,0.00013821,2]
[404622628,1770340520496,500.0,0.00013699,2]
[404622629,1770340520575,500.0,0.00013273,2]
[404622630,1770340520609,532.14555202,0.00013699,2]
[404622631,1770340520648,1000.0,0.00013821,2]
[404622632,1770340520684,500.0,0.00013699,2]
[404622633,1770340520711,1114.23698086,0.00014368,2]
[404622642,1770340563693,536.27225008,0.00014247,2]
[404622643,1770340563721,500.0,0.00013273,2]
[404622644,1770340563753,504.02096121,0.00013821,2]
[404622645,1770340563781,500.0,0.00013699,2]
[404622646,1770340565120,500.80530664,0.00013273,2]
[404622647,1770340568054,500.42278294,0.00013699,2]
[404622650,1770340594330,2995.16146601,0.00014027,2]
[404622651,1770340623481,500.0,0.00013699,2]
[404622652,1770340623522,1294.63888714,0.00014795,2]
[404622653,1770340623582,1000.0,0.00014247,2]
[404622654,1770340623699,440.91283508,0.00013273,2]
[404622655,1770340623727,500.0,0.00013273,2]
[404622656,1770340623788,1000.0,0.00013821,2]
[404622657,1770340623838,1125.77479702,0.00014368,2]
[404622658,1770340624050,500.0,0.00013273,2]
[404622659,1770340624078,500.0,0.00013273,2]
[404622660,1770340624111,500.0,0.00013273,2]
[404622661,1770340624140,1029.99711063,0.00013821,2]
[404622662,1770340624173,1001.60290672,0.00013821,2]
[404622663,1770340624202,1003.70777355,0.00013821,2]
[404622678,1770340683202,964.22668993,0.00014247,2]
[404622679,1770340683238,500.57591964,0.00013699,2]
[404622680,1770340683274,500.0,0.00013699,2]
[404622681,1770340683480,296.82050128,0.00014027,2]
[404622685,1770340742670,342.65443353,0.00013699,2]
[404622686,1770340743285,500.55576074,0.00013273,2]
[404622687,1770340743563,500.32955942,0.00013699,2]
[404622688,1770340743652,500.55069716,0.00013699,2]
[404622689,1770340745904,500.0,0.00013699,2]
[404622690,1770340777476,-5000.0,0.0001615,2]
[404622691,1770340777500,-201.49275256,0.00016232,2]
[404622692,1770340777524,-300.0,0.00016312,2]
[404622693,1770340777547,-5000.0,0.00016313,2]
[404622694,1770340777568,-5000.0,0.00016478,2]
[404622695,1770340777590,-1200.0,0.00016811,2]
[404622696,1770340777610,-300.0,0.00016981,2]
[404622697,1770340777631,-300.0,0.00016981,2]
[404622698,1770340777652,-300.0,0.00016981,2]
[404622699,1770340777673,-2754.14001932,0.00017154,2]
[404622700,1770340777693,-500.0,0.00017676,2]
[404622701,1770340777714,-500.0,0.00017676,2]
[404622702,1770340777736,-500.0,0.00017676,2]
[404622703,1770340777759,-500.0,0.00017676,2]
[404622704,1770340777780,-500.0,0.00017676,2]
[404622705,1770340777807,-500.0,0.00017676,2]
[404622706,1770340777832,-500.0,0.00017676,2]
[404622707,1770340777854,-517.86614665,0.00017676,2]
[404622708,1770340777877,-216.85945079,0.00017676,2]
[404622709,1770340777900,-500.0,0.00017676,2]
[404622710,1770340777923,-500.0,0.00017676,2]
[404622711,1770340777946,-500.0,0.00017676,2]
[404622712,1770340777967,-500.0,0.00017676,2]
[404622713,1770340777990,-304.56072473,0.00017676,2]
[404622714,1770340778014,-500.0,0.00017676,2]
[404622715,1770340778041,-500.0,0.00017676,2]
[404622716,1770340778065,-461.85030566,0.00017676,2]
[404622717,1770340778087,-373.36353982,0.00017676,2]
[404622718,1770340778110,-500.0,0.00017676,2]
[404622719,1770340778133,-500.0,0.00017676,2]
[404622720,1770340778155,-500.0,0.00017676,2]
[404622721,1770340778178,-500.0,0.00017676,2]
[404622722,1770340778200,-500.0,0.00017676,2]
[404622723,1770340778225,-500.0,0.00017676,2]
[404622724,1770340778249,-500.0,0.00017676,2]
[404622725,1770340778274,-500.0,0.00017676,2]
[404622726,1770340778298,-500.0,0.00017676,2]
[404622727,1770340778321,-500.0,0.00017676,2]
[404622728,1770340778345,-500.0,0.00017676,2]
[404622729,1770340778368,-500.0,0.00017676,2]
[404622730,1770340778390,-500.0,0.00017676,2]
[404622731,1770340778414,-500.0,0.00017676,2]
[404622732,1770340778439,-500.0,0.00017676,2]
[404622733,1770340778463,-500.0,0.00017676,2]
[404622734,1770340778487,-500.0,0.00017676,2]
[404622735,1770340778511,-500.0,0.00017676,2]
[404622736,1770340778534,-500.0,0.00017676,2]
[404622737,1770340778561,-500.0,0.00017676,2]
[404622738,1770340778584,-500.0,0.00017676,2]
[404622739,1770340778608,-500.0,0.00017676,2]
[404622740,1770340778631,-500.0,0.00017676,2]
[404622741,1770340778654,-500.0,0.00017676,2]
[404622742,1770340778677,-500.0,0.00017676,2]
[404622743,1770340778700,-500.0,0.00017676,2]
[404622744,1770340778722,-500.0,0.00017676,2]
[404622745,1770340778748,-500.0,0.00017676,2]
[404622746,1770340778774,-500.0,0.00017676,2]
[404622747,1770340778803,-500.0,0.00017676,2]
[404622748,1770340778827,-500.0,0.00017676,2]
[404622749,1770340778852,-500.0,0.00017676,2]
[404622750,1770340778876,-500.0,0.00017676,2]
[404622751,1770340778899,-500.0,0.00017676,2]
[404622752,1770340778923,-500.0,0.00017676,2]
[404622753,1770340778946,-500.0,0.00017676,2]
[404622754,1770340778969,-500.0,0.00017676,2]
[404622755,1770340778993,-500.0,0.00017676,2]
[404622756,1770340779020,-500.0,0.00017676,2]
[404622757,1770340779049,-500.0,0.00017676,2]
[404622758,1770340779074,-500.0,0.00017676,2]
[404622759,1770340779098,-650.98825932,0.00017676,2]
[404622760,1770340779123,-499.02085771,0.00017676,2]
[404622761,1770340779256,-500.0,0.00017676,2]
[404622762,1770340779281,-500.0,0.00017676,2]
[404622763,1770340779310,-500.0,0.00017676,2]
[404622764,1770340779333,-500.0,0.00017676,2]
[404622765,1770340779355,-500.0,0.00017676,2]
[404622766,1770340779377,-500.0,0.00017676,2]
[404622767,1770340779398,-350.0,0.00017676,2]
[404622768,1770340779419,-500.0,0.00017676,2]
[404622769,1770340779442,-500.0,0.00017676,2]
[404622770,1770340779464,-500.0,0.00017676,2]
[404622771,1770340779488,-179.16412688,0.00017676,2]
[404622772,1770340779513,-500.0,0.00017676,2]
[404622773,1770340779543,-500.0,0.00017676,2]
[404622774,1770340779566,-500.0,0.00017676,2]
[404622775,1770340779591,-500.0,0.00017676,2]
[404622776,1770340779613,-500.0,0.00017676,2]
[404622777,1770340779637,-500.0,0.00017676,2]
[404622778,1770340779660,-500.0,0.00017676,2]
[404622779,1770340779682,-400.0,0.00017676,2]
[404622780,1770340779705,-500.0,0.00017676,2]
[404622781,1770340779729,-500.0,0.00017676,2]
[404622782,1770340779752,-500.0,0.00017676,2]
[404622783,1770340779774,-500.0,0.00017676,2]
[404622784,1770340779799,-500.0,0.00017676,2]
[404622785,1770340779825,-500.0,0.00017676,2]
[404622786,1770340779849,-500.0,0.00017676,2]
[404622787,1770340779872,-210.43959565,0.00017676,2]
[404622788,1770340779896,-500.0,0.00017676,2]
[404622789,1770340779921,-500.0,0.00017676,2]
[404622790,1770340779945,-500.0,0.00017676,2]
[404622791,1770340779969,-500.0,0.00017676,2]
[404622792,1770340779992,-500.0,0.00017676,2]
[404622793,1770340780016,-500.0,0.00017676,2]
[404622794,1770340780044,-500.0,0.00017676,2]
[404622795,1770340780067,-500.0,0.00017676,2]
[404622796,1770340780090,-500.0,0.00017676,2]
[404622797,1770340780113,-500.0,0.00017676,2]
[404622798,1770340780135,-500.0,0.00017676,2]
[404622799,1770340780158,-500.0,0.00017676,2]
[404622800,1770340780197,-471.10351087,0.00017676,2]
[404622801,1770340780228,-500.0,0.00017676,2]
[404622802,1770340780263,-500.0,0.00017676,2]
[404622803,1770340780300,-500.0,0.00017676,2]
[404622804,1770340780332,-500.0,0.00017676,2]
[404622805,1770340780366,-500.0,0.00017676,2]
[404622806,1770340780397,-500.0,0.00017676,2]
[404622807,1770340780429,-500.0,0.00017676,2]
[404622808,1770340780467,-500.0,0.00017676,2]
[404622809,1770340780500,-500.0,0.00017676,2]
[404622810,1770340780528,-500.0,0.00017676,2]
[404622811,1770340780567,-500.0,0.00017676,2]
[404622812,1770340780596,-500.0,0.00017678,2]
[404622813,1770340780624,-22155.53465153,0.00017679,2]
[404622814,1770340780653,-500.0,0.00018031,2]
[404622815,1770340780684,-500.0,0.00018031,2]
[404622816,1770340780712,-280.31358418,0.00018031,2]
[404622817,1770340781604,658.89898675,0.00018031,2]
[404622818,1770340789632,414.40348758,0.00018031,2]
[404622819,1770340802121,1151.79,0.00013,2]
[404622820,1770340802462,1151.79,0.000131,2]
[404622821,1770340802911,1151.79,0.000131,2]
[404622822,1770340803257,1151.79,0.000131,2]
[404622823,1770340803582,1151.79,0.000132,2]
[404622824,1770340804209,1151.79,0.000132,2]
[404622825,1770340804239,1151.79,0.000133,2]
[404622826,1770340804482,1151.79,0.000133,2]
[404622827,1770340804771,1151.79,0.000133,2]
[404622828,1770340805065,1151.79,0.000134,2]
[404622829,1770340805401,1151.79,0.000134,2]
[404622830,1770340805734,1151.79,0.000135,2]
[404622831,1770340806028,1151.79,0.000135,2]
[404622832,1770340806321,1151.79,0.000135,2]
[404622833,1770340806819,1151.79,0.000136,2]
[404622834,1770340807107,1151.79,0.000136,2]
[404622835,1770340807405,1151.79,0.000137,2]
[404622836,1770340807693,1151.79,0.000137,2]
[404622837,1770340808019,1151.79,0.000137,2]
[404622838,1770340808382,1151.79,0.000138,2]
[404622839,1770340808693,1151.79,0.000138,2]
[404622840,1770340808975,1151.79,0.000139,2]
[404622841,1770340809253,1151.79,0.000139,2]
[404622842,1770340809576,1151.79,0.000139,2]
[404622843,1770340809893,1151.79,0.00014,2]
[404622844,1770340810794,1151.79,0.00014,2]
[404622845,1770340811232,1151.79,0.000141,2]
[404622846,1770340811505,1151.79,0.000141,2]
[404622847,1770340811833,1151.79,0.000142,2]
[404622848,1770340812103,1151.79,0.000142,2]
[404622849,1770340812371,1151.79,0.000142,2]
[404622850,1770340812649,1151.79,0.000143,2]
[404622851,1770340812954,1151.79,0.000143,2]
[404622852,1770340813236,1151.79,0.000144,2]
[404622853,1770340813516,1151.79,0.000144,2]
[404622854,1770340813779,1151.79,0.000144,2]
[404622855,1770340814095,1151.79,0.000145,2]
[404622856,1770340814601,1151.79,0.000145,2]
[404622857,1770340814696,1151.79,0.000146,2]
[404622858,1770340814987,1151.79,0.000146,2]
[404622859,1770340815306,1151.79,0.000146,2]
[404622860,1770340815600,1151.79,0.000147,2]
[404622861,1770340815933,1151.79,0.000147,2]
[404622862,1770340816269,1151.79,0.000148,2]
[404622863,1770340816599,1151.79,0.000148,2]
[404622864,1770340816913,1151.79,0.000148,2]
[404622865,1770340817361,1151.79,0.000149,2]
[404622866,1770340817689,1151.79,0.000149,2]
[404622867,1770340818016,1151.79,0.00015,2]
[404622868,1770340818792,1151.78,0.00013011,2]
[404622869,1770340866962,500.0,0.00013699,2]
[404622870,1770340867022,749.20875564,0.00014247,2]
[404622871,1770340867251,192.69403245,0.00013699,2]
[404622872,1770340867318,620.97647256,0.00013699,2]
[404622873,1770340867395,500.0,0.00013699,2]
[404622874,1770340867425,1000.0,0.00014247,2]
[404622875,1770340867466,322.76975536,0.00014795,2]
[404622876,1770340867520,500.0,0.00013699,2]
[404622877,1770340867547,500.0,0.00013699,2]
[404622878,1770340867585,558.05337318,0.00014247,2]
[404622880,1770340924349,500.0,0.00013273,2]
[404622881,1770340924399,546.01161809,0.00013821,2]
[404622882,1770340983796,500.0,0.00013699,2]
[404622883,1770340983852,1139.91842979,0.00014795,2]
[404622884,1770340983923,1000.0,0.00014247,2]
[404622885,1770340986154,500.48173514,0.00013699,2]
[404622892,1770341043787,500.0,0.00013699,2]
[404622893,1770341043822,226.3087799,0.00014247,2]
[404622894,1770341051200,-5000.0,0.00017335,2]
[404622895,1770341051223,-229.30608844,0.00017423,2]
[404622896,1770341051246,-5000.0,0.0001751,2]
[404622897,1770341051268,-398.7790853,0.00017687,2]
[404622898,1770341051292,-910.3586186,0.00017687,2]
[404622899,1770341051315,-150.0,0.00017808,2]
[404622900,1770341051341,-1200.0,0.0001785,2]
[404622901,1770341051367,-683.0,0.00017851,2]
[404622902,1770341051391,-300.0,0.0001803,2]
[404622903,1770341051415,-300.0,0.00018031,2]
[404622904,1770341051438,-300.0,0.00018032,2]
[404622905,1770341051466,-300.0,0.00018032,2]
[404622906,1770341051489,-300.0,0.00018032,2]
[404622907,1770341051520,-300.0,0.00018032,2]
[404622908,1770341051544,-300.0,0.00018032,2]
[404622909,1770341051568,-300.0,0.00018032,2]
[404622910,1770341051593,-300.0,0.00018032,2]
[404622911,1770341051616,-300.0,0.00018032,2]
[404622912,1770341051638,-300.0,0.00018032,2]
[404622913,1770341051662,-300.0,0.00018032,2]
[404622914,1770341051685,-300.0,0.00018032,2]
[404622915,1770341051711,-300.0,0.00018032,2]
[404622916,1770341051734,-300.0,0.00018032,2]
[404622917,1770341051756,-300.0,0.00018032,2]
[404622918,1770341051778,-300.0,0.00018032,2]
[404622919,1770341051801,-600.0,0.00018032,2]
[404622920,1770341054869,728.55620766,0.00018032,2]
[404622921,1770341075112,200.0,0.00014842,2]
[404622931,1770341270537,104328.10424622,0.00012,5]
[404622933,1770341290824,1930.9843811,0.0001,2]
[404622935,1770341299071,289.81736403,0.0001,2]
[404622937,1770341306822,786.40799392,0.00015,2]
[404622938,1770341309153,1000.0,0.0001,2]
[404622941,1770341315920,2465.07711251,0.0001,2]
[404622942,1770341316246,3451.64200308,0.0001,2]
[404622943,1770341320644,500.72455511,6.546e-05,2]
[404622955,1770341402039,177.96,0.00012,2]
[404622956,1770341402337,177.96,0.00012,2]
[404622957,1770341402636,177.96,0.000121,2]
[404622958,1770341402990,177.96,0.000121,2]
[404622959,1770341403330,177.96,0.000122,2]
[404622960,1770341403665,177.96,0.000122,2]
[404622961,1770341403952,177.96,0.000122,2]
[404622962,1770341404287,177.96,0.000123,2]
[404622963,1770341404629,177.96,0.000123,2]
[404622964,1770341404912,177.96,0.000124,2]
[404622965,1770341405261,177.96,0.000124,2]
[404622966,1770341405615,177.96,0.000124,2]
[404622967,1770341405977,177.96,0.000125,2]
[404622968,1770341406272,177.96,0.000125,2]
[404622969,1770341406564,177.96,0.000126,2]
[404622970,1770341406863,177.96,0.000126,2]
[404622971,1770341407206,177.96,0.000127,2]
[404622972,1770341407503,177.96,0.000127,2]
[404622973,1770341407801,177.96,0.000127,2]
[404622974,1770341408087,177.96,0.000128,2]
[404622975,1770341408538,177.96,0.000128,2]
[404622976,1770341408683,177.96,0.000129,2]
[404622977,1770341409060,177.96,0.000129,2]
[404622978,1770341409347,177.96,0.000129,2]
[404622979,1770341409645,177.96,0.00013,2]
[404622980,1770341409941,177.96,0.00013,2]
[404622981,1770341410234,177.96,0.000131,2]
[404622982,1770341410548,177.96,0.000131,2]
[404622983,1770341410831,177.96,0.000131,2]
[404622984,1770341411136,177.96,0.000132,2]
[404622985,1770341411428,177.96,0.000132,2]
[404622986,1770341411723,177.96,0.000133,2]
[404622987,1770341412170,177.96,0.000133,2]
[404622988,1770341412555,177.96,0.000133,2]
[404622989,1770341412900,177.96,0.000134,2]
[404622990,1770341413202,177.96,0.000134,2]
[404622991,1770341413486,177.96,0.000135,2]
[404622992,1770341413810,177.96,0.000135,2]
[404622993,1770341414185,177.96,0.000136,2]
[404622994,1770341414437,177.96,0.000136,2]
[404622995,1770341414725,177.96,0.000136,2]
[404622996,1770341416057,177.96,0.000137,2]
[404622997,1770341420590,177.96,0.000137,2]
[404622998,1770341424005,177.96,0.000138,2]
[404622999,1770341424318,177.96,0.000138,2]
[404623000,1770341424598,177.96,0.000138,2]
[404623001,1770341425529,177.96,0.000139,2]
[404623002,1770341425854,177.96,0.000139,2]
[404623003,1770341426425,177.96,0.00014,2]
[404623004,1770341426544,177.96,0.00014,2]
[404623071,1770341432604,-4000.0,0.00016887,2]
[404623073,1770341432619,-150.0,0.00016999,2]
[404623075,1770341432628,-4229.64426415,0.00017,2]
[404623196,1770341440985,-1275.88062152,0.00016718,2]
[404623197,1770341440995,-11279.67195271,0.00017,2]
[404623214,1770341445511,696.8411,0.0003013,120]
[404623215,1770341446087,-987.37553318,0.00017,2]
[404623219,1770341446110,-9818.20527201,0.00017,2]
[404623221,1770341446120,-224.71996667,0.00017033,2]
[404623223,1770341446130,-5000.0,0.00017065,2]
[404623225,1770341446140,-208.08058082,0.00017587,2]
[404623226,1770341446150,-500.0,0.00017681,2]
[404623228,1770341446159,-500.0,0.00017681,2]
[404623230,1770341446169,-606.51594052,0.00017681,2]
[404623232,1770341446179,-631.50031627,0.00017681,2]
[404623234,1770341446189,-177.1508896,0.00017682,2]
[404623236,1770341446198,-1590.60598324,0.00017682,2]
[404623237,1770341446213,-2575.88996176,0.00017682,2]
[404623253,1770341463833,479.93579163,0.00013699,2]
[404623254,1770341471384,289.0,0.00030137,120]
[404623255,1770341479025,-361.7274484,0.0001733,2]
[404623256,1770341479087,-171.46510326,0.00017505,2]
[404623257,1770341479811,500.0,0.00013699,2]
[404623258,1770341479860,1000.0,0.00014247,2]
[404623259,1770341479915,952.82203707,0.00014795,2]
[404623260,1770341480462,500.0,0.00013273,2]
[404623261,1770341480516,1112.52062591,0.00013821,2]
[404623265,1770341508166,-841.66324003,0.00017505,2]
[404623266,1770341534506,508.15835537,0.00013273,2]
[404623267,1770341534631,500.0,0.00013273,2]
[404623268,1770341534676,1011.18335892,0.00013821,2]
[404623269,1770341535638,302.92972948,0.00014221,2]
[404623270,1770341535679,8675.0,0.00030137,120]
[404623271,1770341535709,300.0,0.00013673,2]
[404623272,1770341536091,1000.0,0.00014247,2]
[404623273,1770341536123,500.0,0.00013699,2]
[404623274,1770341536159,1512.81096275,0.00014795,2]
[404623275,1770341553017,2653.8646349,0.00014027,2]
[404623276,1770341583918,500.0,0.00013273,2]
[404623277,1770341583967,602.38676473,0.00013821,2]
[404623278,1770341585567,500.0,0.00013273,2]
[404623279,1770341585629,504.54015096,0.00013821,2]
[404623281,1770341585706,500.0,0.00013273,2]
[404623282,1770341585763,501.99495292,0.00013821,2]
[404623296,1770341644689,262.99798532,0.00014027,2]
[404623303,1770341703780,500.0,0.00013699,2]
[404623304,1770341703816,500.72188565,0.00014247,2]
[404623305,1770341704165,500.0,0.00013699,2]
[404623306,1770341704193,435.58351424,0.00014247,2]
[404623307,1770341704228,500.0,0.00013699,2]
[404623308,1770341704265,500.70904095,0.00014247,2]
[404623309,1770341706858,500.0,0.00013699,2]
[404623310,1770341706896,503.17553543,0.00014247,2]
[404623315,1770341764251,500.0,0.00013273,2]
[404623316,1770341764292,505.90357297,0.00013821,2]
[404623324,1770341823668,502.69652388,0.00013699,2]
[404623325,1770341823753,500.76716592,0.00013699,2]
[404623327,1770341879761,216.5,9.99e-05,3]
[404623328,1770341880254,216.5,9.99e-05,3]
[404623333,1770341918853,663.0,0.00030137,120]